[Event "Titled Tuesday Blitz June 20 Early 2023"]
[White "Hayrapetyan, Hovik"]
[Black "Aldokhin, Ivan"]
[WhiteFideId "13302639"]
[BlackFideId "24115720"]
[WhiteElo "2348"]
[BlackElo "2322"]
[Result "1-0"]
[Round "5"]
[TimeControl "180+2"]
[Date "2023.06.20"]
[WhiteClock "0:00:07"]
[BlackClock "0:00:00"]
[Board "73"]

1. d4 {[%clk 0:03:00]}  Nf6 {[%clk 0:02:57]} 2. c4 {[%clk 0:03:01]}  g6 {[%clk 0:02:57]} 3. Nc3 {[%clk 0:03:01]}  Bg7 {[%clk 0:02:57]} 4. Nf3 {[%clk 0:03:00]}  d6 {[%clk 0:02:57]} 5. g3 {[%clk 0:03:00]}  O-O {[%clk 0:02:56]} 6. Bg2 {[%clk 0:03:00]}  Nc6 {[%clk 0:02:56]} 7. d5 {[%clk 0:02:59]}  Na5 {[%clk 0:02:55]} 8. b3 {[%clk 0:03:00]}  c5 {[%clk 0:02:55]} 9. Bb2 {[%clk 0:02:59]}  a6 {[%clk 0:02:50]} 10. O-O {[%clk 0:02:56]}  b5 {[%clk 0:02:49]} 11. Nd2 {[%clk 0:02:43]}  Rb8 {[%clk 0:02:42]} 12. Qc2 {[%clk 0:02:41]}  e6 {[%clk 0:02:32]} 13. Rad1 {[%clk 0:02:09]}  bxc4 {[%clk 0:02:27]} 14. bxc4 {[%clk 0:02:08]}  exd5 {[%clk 0:02:21]} 15. cxd5 {[%clk 0:01:47]}  Re8 {[%clk 0:02:16]} 16. Rfe1 {[%clk 0:01:41]}  Ng4 {[%clk 0:01:48]} 17. Ba1 {[%clk 0:01:28]}  Bf5 {[%clk 0:01:25]} 18. e4 {[%clk 0:01:15]}  Bd7 {[%clk 0:01:18]} 19. h3 {[%clk 0:01:13]}  Nxf2 {[%clk 0:01:06]} 20. Kxf2 {[%clk 0:01:11]}  Bd4+ {[%clk 0:01:07]} 21. Ke2 {[%clk 0:00:52]}  Qg5 {[%clk 0:00:45]} 22. Qd3 {[%clk 0:00:43]}  Rb4 {[%clk 0:00:05]} 23. a3 {[%clk 0:00:37]}  Rbb8 {[%clk 0:00:01]} 24. Rf1 {[%clk 0:00:34]}  Qh5+ {[%clk 0:00:01]} 25. g4 {[%clk 0:00:33]}  Qh6 {[%clk 0:00:01]} 26. Qf3 {[%clk 0:00:24]}  Nb3 {[%clk 0:00:02]} 27. Nxb3 {[%clk 0:00:15]}  Rxb3 {[%clk 0:00:02]} 28. Rxd4 {[%clk 0:00:13]}  c4 {[%clk 0:00:02]} 29. Qxf7+ {[%clk 0:00:13]}  Kh8 {[%clk 0:00:03]} 30. Qf6+ {[%clk 0:00:13]}  Kg8 {[%clk 0:00:03]} 31. Qf7+ {[%clk 0:00:11]}  Kh8 {[%clk 0:00:03]} 32. Rd2 {[%clk 0:00:08]}  Reb8 {[%clk 0:00:02]} 33. Nd1+ {[%clk 0:00:08]}  c3 {[%clk 0:00:02]} 34. Nxc3 {[%clk 0:00:07]}  Rb2 {[%clk 0:00:01]} 35. Rxb2 {[%clk 0:00:05]}  Rxb2+ {[%clk 0:00:01]} 36. Bxb2 {[%clk 0:00:06]}  Qg7 {[%clk 0:00:01]} 37. Qxg7+ {[%clk 0:00:04]}  Kxg7 {[%clk 0:00:01]} 38. Nb5+ {[%clk 0:00:05]}  Kg8 {[%clk 0:00:02]} 39. Nxd6 {[%clk 0:00:06]}  h5 {[%clk 0:00:02]} 40. Ke3 {[%clk 0:00:06]}  hxg4 {[%clk 0:00:00]} 41. hxg4 {[%clk 0:00:07]} 1-0


[Site "https://www.chess.com"]

[Event "Titled Tuesday Blitz June 20 Early 2023"]
[White "Marek, Matyas"]
[Black "De La Villa Garcia, Jesus Maria"]
[WhiteFideId "335398"]
[BlackFideId "2200040"]
[WhiteElo "2302"]
[BlackElo "2536"]
[Result "0-1"]
[Round "5"]
[TimeControl "180+2"]
[Date "2023.06.20"]
[WhiteClock "0:00:14"]
[BlackClock "0:00:08"]
[Board "78"]

1. Nf3 {[%clk 0:03:00]}  d5 {[%clk 0:02:59]} 2. g3 {[%clk 0:03:01]}  Nc6 {[%clk 0:02:59]} 3. Bg2 {[%clk 0:03:02]}  e5 {[%clk 0:02:59]} 4. O-O {[%clk 0:03:03]}  Be6 {[%clk 0:02:58]} 5. d3 {[%clk 0:03:03]}  f6 {[%clk 0:02:58]} 6. e4 {[%clk 0:03:02]}  dxe4 {[%clk 0:02:57]} 7. dxe4 {[%clk 0:03:02]}  Qxd1 {[%clk 0:02:57]} 8. Rxd1 {[%clk 0:03:03]}  Bc5 {[%clk 0:02:58]} 9. c3 {[%clk 0:03:00]}  a5 {[%clk 0:02:58]} 10. Nbd2 {[%clk 0:02:57]}  Nge7 {[%clk 0:02:57]} 11. Nf1 {[%clk 0:02:58]}  Kf7 {[%clk 0:02:55]} 12. Be3 {[%clk 0:02:58]}  Bd6 {[%clk 0:02:52]} 13. h4 {[%clk 0:02:46]}  Rhd8 {[%clk 0:02:52]} 14. h5 {[%clk 0:02:46]}  a4 {[%clk 0:02:50]} 15. Nh4 {[%clk 0:02:39]}  g6 {[%clk 0:02:28]} 16. a3 {[%clk 0:02:25]}  Na5 {[%clk 0:02:24]} 17. Nd2 {[%clk 0:02:19]}  Nec6 {[%clk 0:02:19]} 18. hxg6+ {[%clk 0:02:13]}  hxg6 {[%clk 0:02:20]} 19. Bf1 {[%clk 0:02:14]}  Nb3 {[%clk 0:02:17]} 20. Nxb3 {[%clk 0:02:13]}  Bxb3 {[%clk 0:02:18]} 21. Rd2 {[%clk 0:02:07]}  Be7 {[%clk 0:02:15]} 22. Rxd8 {[%clk 0:02:03]}  Rxd8 {[%clk 0:02:16]} 23. Nf3 {[%clk 0:02:00]}  Na5 {[%clk 0:02:12]} 24. Nd2 {[%clk 0:01:59]}  c6 {[%clk 0:01:16]} 25. Nxb3 {[%clk 0:01:56]}  Nxb3 {[%clk 0:01:17]} 26. Re1 {[%clk 0:01:53]}  b5 {[%clk 0:01:13]} 27. Be2 {[%clk 0:01:52]}  Bc5 {[%clk 0:01:13]} 28. Rd1 {[%clk 0:01:18]}  Re8 {[%clk 0:00:38]} 29. Bg4 {[%clk 0:01:00]}  Bxe3 {[%clk 0:00:36]} 30. fxe3 {[%clk 0:01:00]}  Nc5 {[%clk 0:00:35]} 31. Rd6 {[%clk 0:00:52]}  Nxe4 {[%clk 0:00:34]} 32. Rxc6 {[%clk 0:00:52]}  Rd8 {[%clk 0:00:34]} 33. Rc7+ {[%clk 0:00:47]}  Kf8 {[%clk 0:00:28]} 34. Bd7 {[%clk 0:00:44]}  Nxg3 {[%clk 0:00:23]} 35. Bxb5 {[%clk 0:00:41]}  Rd2 {[%clk 0:00:22]} 36. Bxa4 {[%clk 0:00:35]}  Rxb2 {[%clk 0:00:22]} 37. Bc6 {[%clk 0:00:32]}  Ne2+ {[%clk 0:00:20]} 38. Kf1 {[%clk 0:00:31]}  Nxc3 {[%clk 0:00:20]} 39. a4 {[%clk 0:00:30]}  Ra2 {[%clk 0:00:17]} 40. Ra7 {[%clk 0:00:31]}  Nd1 {[%clk 0:00:16]} 41. e4 {[%clk 0:00:28]}  Ne3+ {[%clk 0:00:16]} 42. Ke1 {[%clk 0:00:27]}  f5 {[%clk 0:00:16]} 43. exf5 {[%clk 0:00:26]}  gxf5 {[%clk 0:00:16]} 44. Ra5 {[%clk 0:00:26]}  Nc2+ {[%clk 0:00:11]} 45. Kf1 {[%clk 0:00:24]}  e4 {[%clk 0:00:11]} 46. Rxf5+ {[%clk 0:00:24]}  Ke7 {[%clk 0:00:09]} 47. Bxe4 {[%clk 0:00:24]}  Ne3+ {[%clk 0:00:09]} 48. Ke1 {[%clk 0:00:25]}  Nxf5 {[%clk 0:00:10]} 49. Bxf5 {[%clk 0:00:25]}  Ra1+ {[%clk 0:00:09]} 50. Ke2 {[%clk 0:00:25]}  Rxa4 {[%clk 0:00:10]} 51. Bd3 {[%clk 0:00:26]}  Ra3 {[%clk 0:00:10]} 52. Ke3 {[%clk 0:00:26]}  Kd6 {[%clk 0:00:11]} 53. Kd4 {[%clk 0:00:27]}  Ra4+ {[%clk 0:00:11]} 54. Bc4 {[%clk 0:00:27]}  Ra8 {[%clk 0:00:11]} 55. Bd3 {[%clk 0:00:27]}  Rh8 {[%clk 0:00:12]} 56. Be4 {[%clk 0:00:28]}  Rh4 {[%clk 0:00:13]} 57. Ke3 {[%clk 0:00:28]}  Ke5 {[%clk 0:00:14]} 58. Bd3 {[%clk 0:00:29]}  Rh3+ {[%clk 0:00:14]} 59. Kd2 {[%clk 0:00:30]}  Kd4 {[%clk 0:00:15]} 60. Be2 {[%clk 0:00:30]}  Rh2 {[%clk 0:00:16]} 61. Kd1 {[%clk 0:00:28]}  Ke3 {[%clk 0:00:16]} 62. Bc4 {[%clk 0:00:29]}  Rd2+ {[%clk 0:00:16]} 63. Kc1 {[%clk 0:00:29]}  Rg2 {[%clk 0:00:17]} 64. Kd1 {[%clk 0:00:30]}  Kd4 {[%clk 0:00:17]} 65. Bf7 {[%clk 0:00:28]}  Rh2 {[%clk 0:00:18]} 66. Bg6 {[%clk 0:00:27]}  Rg2 {[%clk 0:00:17]} 67. Bf5 {[%clk 0:00:26]}  Ke3 {[%clk 0:00:17]} 68. Kc1 {[%clk 0:00:25]}  Rf2 {[%clk 0:00:17]} 69. Be6 {[%clk 0:00:25]}  Kd4 {[%clk 0:00:18]} 70. Kb1 {[%clk 0:00:24]}  Kc3 {[%clk 0:00:18]} 71. Bd5 {[%clk 0:00:23]}  Rb2+ {[%clk 0:00:18]} 72. Ka1 {[%clk 0:00:23]}  Rd2 {[%clk 0:00:18]} 73. Be4 {[%clk 0:00:23]}  Kb3 {[%clk 0:00:18]} 74. Bb1 {[%clk 0:00:23]}  Re2 {[%clk 0:00:16]} 75. Bd3 {[%clk 0:00:23]}  Re5 {[%clk 0:00:15]} 76. Bg6 {[%clk 0:00:21]}  Rb5 {[%clk 0:00:13]} 77. Bf7+ {[%clk 0:00:20]}  Kc3 {[%clk 0:00:12]} 78. Bg6 {[%clk 0:00:20]}  Rg5 {[%clk 0:00:12]} 79. Bf7 {[%clk 0:00:20]}  Rf5 {[%clk 0:00:12]} 80. Bg6 {[%clk 0:00:20]}  Rf6 {[%clk 0:00:13]} 81. Bh7 {[%clk 0:00:20]}  Kb3 {[%clk 0:00:13]} 82. Bg8+ {[%clk 0:00:21]}  Ka3 {[%clk 0:00:13]} 83. Kb1 {[%clk 0:00:21]}  Rf2 {[%clk 0:00:12]} 84. Be6 {[%clk 0:00:20]}  Re2 {[%clk 0:00:12]} 85. Bf7 {[%clk 0:00:21]}  Kb4 {[%clk 0:00:11]} 86. Bg8 {[%clk 0:00:21]}  Kc3 {[%clk 0:00:11]} 87. Bf7 {[%clk 0:00:21]}  Rb2+ {[%clk 0:00:11]} 88. Ka1 {[%clk 0:00:22]}  Rb7 {[%clk 0:00:12]} 89. Bg8 {[%clk 0:00:22]}  Rg7 {[%clk 0:00:12]} 90. Be6 {[%clk 0:00:22]}  Rg5 {[%clk 0:00:12]} 91. Bf7 {[%clk 0:00:22]}  Kc2 {[%clk 0:00:12]} 92. Be6 {[%clk 0:00:20]}  Re5 {[%clk 0:00:10]} 93. Bg8 {[%clk 0:00:19]}  Ra5+ {[%clk 0:00:09]} 94. Ba2 {[%clk 0:00:20]}  Rb5 {[%clk 0:00:08]} 95. Bg8 {[%clk 0:00:19]}  Rb1+ {[%clk 0:00:08]} 96. Ka2 {[%clk 0:00:20]}  Rb7 {[%clk 0:00:09]} 97. Bh7+ {[%clk 0:00:14]}  Rxh7 {[%clk 0:00:08]} 0-1


[Site "https://www.chess.com"]

[Event "Titled Tuesday Blitz June 20 Early 2023"]
[White "Kovacsy, Barnabas"]
[Black "Demidov, Mikhail"]
[WhiteFideId "769290"]
[BlackFideId "4197143"]
[WhiteElo "2130"]
[BlackElo "2500"]
[Result "1/2-1/2"]
[Round "5"]
[TimeControl "180+2"]
[Date "2023.06.20"]
[WhiteClock "0:00:10"]
[BlackClock "0:00:08"]
[Board "84"]

1. e4 {[%clk 0:03:00]}  g6 {[%clk 0:02:59]} 2. d4 {[%clk 0:03:00]}  Bg7 {[%clk 0:03:00]} 3. Nf3 {[%clk 0:03:00]}  a6 {[%clk 0:03:00]} 4. Bd3 {[%clk 0:02:54]}  d6 {[%clk 0:03:00]} 5. O-O {[%clk 0:02:53]}  Nf6 {[%clk 0:03:01]} 6. h3 {[%clk 0:02:47]}  O-O {[%clk 0:03:01]} 7. Re1 {[%clk 0:02:47]}  Nc6 {[%clk 0:02:59]} 8. Nc3 {[%clk 0:02:39]}  e6 {[%clk 0:02:57]} 9. Bg5 {[%clk 0:02:32]}  h6 {[%clk 0:02:56]} 10. Bh4 {[%clk 0:02:29]}  Ne7 {[%clk 0:02:56]} 11. e5 {[%clk 0:02:22]}  Nd7 {[%clk 0:02:47]} 12. Ne4 {[%clk 0:02:02]}  d5 {[%clk 0:02:42]} 13. Nf6+ {[%clk 0:01:59]}  Kh8 {[%clk 0:02:42]} 14. Qd2 {[%clk 0:01:57]}  c5 {[%clk 0:02:27]} 15. c3 {[%clk 0:01:57]}  b6 {[%clk 0:02:24]} 16. Bc2 {[%clk 0:01:42]}  Qc7 {[%clk 0:02:24]} 17. Qd3 {[%clk 0:01:41]}  a5 {[%clk 0:02:20]} 18. Nh5 {[%clk 0:01:40]}  Ba6 {[%clk 0:02:16]} 19. Qd2 {[%clk 0:01:33]}  gxh5 {[%clk 0:02:10]} 20. Bxe7 {[%clk 0:01:33]}  Rg8 {[%clk 0:02:06]} 21. Bf6 {[%clk 0:01:30]}  Nxf6 {[%clk 0:01:58]} 22. exf6 {[%clk 0:01:31]}  Bf8 {[%clk 0:01:59]} 23. Ne5 {[%clk 0:01:27]}  Ra7 {[%clk 0:01:41]} 24. Rac1 {[%clk 0:01:22]}  Qd8 {[%clk 0:01:08]} 25. Qf4 {[%clk 0:01:22]}  Bb5 {[%clk 0:00:51]} 26. b3 {[%clk 0:00:58]}  a4 {[%clk 0:00:48]} 27. c4 {[%clk 0:00:55]}  Be8 {[%clk 0:00:38]} 28. dxc5 {[%clk 0:00:48]}  bxc5 {[%clk 0:00:35]} 29. Rcd1 {[%clk 0:00:48]}  axb3 {[%clk 0:00:34]} 30. axb3 {[%clk 0:00:48]}  Ra2 {[%clk 0:00:33]} 31. Bb1 {[%clk 0:00:46]}  Rb2 {[%clk 0:00:32]} 32. cxd5 {[%clk 0:00:46]}  exd5 {[%clk 0:00:28]} 33. Qf5 {[%clk 0:00:41]}  Rxb1 {[%clk 0:00:27]} 34. Rxb1 {[%clk 0:00:41]}  Rg5 {[%clk 0:00:20]} 35. Qf4 {[%clk 0:00:39]}  Qc8 {[%clk 0:00:13]} 36. h4 {[%clk 0:00:36]}  Rf5 {[%clk 0:00:14]} 37. Qe3 {[%clk 0:00:34]}  Rxf6 {[%clk 0:00:11]} 38. Ng6+ {[%clk 0:00:33]}  fxg6 {[%clk 0:00:09]} 39. Qxe8 {[%clk 0:00:33]}  Qf5 {[%clk 0:00:09]} 40. Rb2 {[%clk 0:00:28]}  Kh7 {[%clk 0:00:08]} 41. Ra2 {[%clk 0:00:24]}  Rf7 {[%clk 0:00:08]} 42. g3 {[%clk 0:00:18]}  d4 {[%clk 0:00:09]} 43. Rae2 {[%clk 0:00:18]}  Kg7 {[%clk 0:00:08]} 44. Qe5+ {[%clk 0:00:17]}  Qxe5 {[%clk 0:00:08]} 45. Rxe5 {[%clk 0:00:18]}  Rb7 {[%clk 0:00:08]} 46. Rb1 {[%clk 0:00:13]}  Kf7 {[%clk 0:00:07]} 47. Re4 {[%clk 0:00:12]}  Bg7 {[%clk 0:00:07]} 48. Rc1 {[%clk 0:00:09]}  Bf8 {[%clk 0:00:07]} 49. Rb1 {[%clk 0:00:08]}  Bg7 {[%clk 0:00:07]} 50. Rc1 {[%clk 0:00:09]}  Bf8 {[%clk 0:00:08]} 51. Rb1 {[%clk 0:00:10]} 1/2-1/2


[Site "https://www.chess.com"]

[Event "Titled Tuesday Blitz June 20 Early 2023"]
[White "Christiansen, Johan-Sebastian"]
[Black "Kochiev, Ivan"]
[WhiteFideId "1512668"]
[BlackFideId "2917890"]
[WhiteElo "2531"]
[BlackElo "2287"]
[Result "1-0"]
[Round "5"]
[TimeControl "180+2"]
[Date "2023.06.20"]
[WhiteClock "0:00:54"]
[BlackClock "0:00:02"]
[Board "85"]

1. e4 {[%clk 0:03:00]}  c5 {[%clk 0:02:46]} 2. Nf3 {[%clk 0:02:59]}  d6 {[%clk 0:02:47]} 3. Nc3 {[%clk 0:02:59]}  Nc6 {[%clk 0:02:46]} 4. Bc4 {[%clk 0:02:55]}  Nf6 {[%clk 0:02:47]} 5. d3 {[%clk 0:02:55]}  g6 {[%clk 0:02:47]} 6. h3 {[%clk 0:02:55]}  Bg7 {[%clk 0:02:47]} 7. a3 {[%clk 0:02:55]}  O-O {[%clk 0:02:48]} 8. O-O {[%clk 0:02:55]}  a6 {[%clk 0:02:48]} 9. Bg5 {[%clk 0:02:55]}  e6 {[%clk 0:02:46]} 10. Re1 {[%clk 0:02:53]}  b5 {[%clk 0:02:46]} 11. Ba2 {[%clk 0:02:51]}  Bb7 {[%clk 0:02:46]} 12. Qd2 {[%clk 0:02:43]}  Rc8 {[%clk 0:02:46]} 13. Qf4 {[%clk 0:02:43]}  Nd4 {[%clk 0:02:31]} 14. Rac1 {[%clk 0:02:39]}  Nxf3+ {[%clk 0:02:21]} 15. Qxf3 {[%clk 0:02:38]}  h6 {[%clk 0:02:21]} 16. Bh4 {[%clk 0:02:37]}  g5 {[%clk 0:02:14]} 17. Bg3 {[%clk 0:02:37]}  Qa5 {[%clk 0:02:07]} 18. Bxd6 {[%clk 0:02:32]}  Rfe8 {[%clk 0:01:58]} 19. Be5 {[%clk 0:02:00]}  Nd7 {[%clk 0:01:31]} 20. Bxg7 {[%clk 0:02:00]}  Kxg7 {[%clk 0:01:32]} 21. Qg3 {[%clk 0:01:53]}  b4 {[%clk 0:01:29]} 22. Nb1 {[%clk 0:01:50]}  Nf6 {[%clk 0:01:12]} 23. Qe5 {[%clk 0:01:30]}  Kg6 {[%clk 0:01:10]} 24. Bb3 {[%clk 0:01:26]}  Nd7 {[%clk 0:00:54]} 25. Qd6 {[%clk 0:01:17]}  Nb6 {[%clk 0:00:50]} 26. axb4 {[%clk 0:01:13]}  cxb4 {[%clk 0:00:50]} 27. Nd2 {[%clk 0:01:11]}  Rc6 {[%clk 0:00:49]} 28. Qg3 {[%clk 0:01:10]}  Qc5 {[%clk 0:00:31]} 29. h4 {[%clk 0:01:10]}  a5 {[%clk 0:00:30]} 30. Nf3 {[%clk 0:01:07]}  a4 {[%clk 0:00:23]} 31. Ne5+ {[%clk 0:01:07]}  Kg7 {[%clk 0:00:13]} 32. hxg5 {[%clk 0:01:02]}  h5 {[%clk 0:00:05]} 33. Qf4 {[%clk 0:00:57]}  Rc7 {[%clk 0:00:04]} 34. Qf6+ {[%clk 0:00:57]}  Kg8 {[%clk 0:00:05]} 35. g6 {[%clk 0:00:54]}  Qe7 {[%clk 0:00:02]} 36. gxf7+ {[%clk 0:00:54]} 1-0


[Site "https://www.chess.com"]

[Event "Titled Tuesday Blitz June 20 Early 2023"]
[White "Lehtosaari, Mauri"]
[Black "Pakleza, Zbigniew"]
[WhiteFideId "501999"]
[BlackFideId "1119290"]
[WhiteElo "2506"]
[BlackElo "2410"]
[Result "0-1"]
[Round "5"]
[TimeControl "180+2"]
[Date "2023.06.20"]
[WhiteClock "0:00:23"]
[BlackClock "0:00:42"]
[Board "88"]

1. d4 {[%clk 0:03:00]}  d6 {[%clk 0:03:00]} 2. Nf3 {[%clk 0:02:59]}  Bg4 {[%clk 0:02:59]} 3. Nbd2 {[%clk 0:02:54]}  Nf6 {[%clk 0:02:59]} 4. h3 {[%clk 0:02:51]}  Bh5 {[%clk 0:02:57]} 5. c4 {[%clk 0:02:51]}  c6 {[%clk 0:02:57]} 6. Qb3 {[%clk 0:02:28]}  Qb6 {[%clk 0:02:57]} 7. e3 {[%clk 0:02:28]}  e6 {[%clk 0:02:54]} 8. Bd3 {[%clk 0:02:24]}  Be7 {[%clk 0:02:54]} 9. Ne4 {[%clk 0:02:20]}  Nbd7 {[%clk 0:02:48]} 10. Bd2 {[%clk 0:02:18]}  O-O {[%clk 0:02:43]} 11. Nxf6+ {[%clk 0:02:15]}  Nxf6 {[%clk 0:02:40]} 12. Be2 {[%clk 0:02:05]}  Ne4 {[%clk 0:02:37]} 13. Bc3 {[%clk 0:02:01]}  d5 {[%clk 0:02:32]} 14. c5 {[%clk 0:02:00]}  Qc7 {[%clk 0:02:29]} 15. Qc2 {[%clk 0:01:54]}  b6 {[%clk 0:02:08]} 16. b4 {[%clk 0:01:45]}  a5 {[%clk 0:02:06]} 17. a3 {[%clk 0:01:42]}  axb4 {[%clk 0:02:05]} 18. axb4 {[%clk 0:01:43]}  Rxa1+ {[%clk 0:02:06]} 19. Bxa1 {[%clk 0:01:41]}  Ra8 {[%clk 0:02:06]} 20. O-O {[%clk 0:01:40]}  b5 {[%clk 0:02:00]} 21. Bb2 {[%clk 0:01:27]}  f6 {[%clk 0:01:39]} 22. Re1 {[%clk 0:01:23]}  Ra4 {[%clk 0:01:35]} 23. Qb3 {[%clk 0:01:17]}  Qa7 {[%clk 0:01:26]} 24. Bd1 {[%clk 0:01:16]}  Ra2 {[%clk 0:01:15]} 25. Bc2 {[%clk 0:00:48]}  Bxf3 {[%clk 0:00:50]} 26. gxf3 {[%clk 0:00:49]}  Nd2 {[%clk 0:00:51]} 27. Bxh7+ {[%clk 0:00:40]}  Kf8 {[%clk 0:00:42]} 28. Kg2 {[%clk 0:00:23]}  Nxb3 {[%clk 0:00:42]} 0-1


[Site "https://www.chess.com"]

[Event "Titled Tuesday Blitz June 20 Early 2023"]
[White "Cherniaiev, Tykhon"]
[Black "Goltseva, Ekaterina"]
[WhiteFideId "14182360"]
[BlackFideId "24173770"]
[WhiteElo "2450"]
[BlackElo "2114"]
[Result "1-0"]
[Round "5"]
[TimeControl "180+2"]
[Date "2023.06.20"]
[WhiteClock "0:00:40"]
[BlackClock "0:00:15"]
[Board "90"]

1. Nf3 {[%clk 0:03:00]}  Nf6 {[%clk 0:02:57]} 2. d4 {[%clk 0:03:01]}  d5 {[%clk 0:02:56]} 3. c4 {[%clk 0:03:01]}  dxc4 {[%clk 0:02:55]} 4. Nc3 {[%clk 0:03:00]}  a6 {[%clk 0:02:50]} 5. a4 {[%clk 0:02:59]}  Nc6 {[%clk 0:02:50]} 6. e4 {[%clk 0:02:56]}  Bg4 {[%clk 0:02:44]} 7. d5 {[%clk 0:02:41]}  Ne5 {[%clk 0:02:12]} 8. Bf4 {[%clk 0:02:40]}  Bxf3 {[%clk 0:01:39]} 9. gxf3 {[%clk 0:02:41]}  Ng6 {[%clk 0:01:39]} 10. Bg3 {[%clk 0:02:39]}  e5 {[%clk 0:01:39]} 11. dxe6 {[%clk 0:02:34]}  fxe6 {[%clk 0:01:38]} 12. Bxc4 {[%clk 0:02:34]}  Qxd1+ {[%clk 0:01:27]} 13. Rxd1 {[%clk 0:02:35]}  e5 {[%clk 0:01:28]} 14. O-O {[%clk 0:01:53]}  c6 {[%clk 0:01:25]} 15. Ne2 {[%clk 0:01:48]}  Nh5 {[%clk 0:01:21]} 16. Be6 {[%clk 0:01:48]}  Bc5 {[%clk 0:01:14]} 17. Bg4 {[%clk 0:01:12]}  Nf6 {[%clk 0:01:09]} 18. Bf5 {[%clk 0:01:09]}  Ne7 {[%clk 0:00:43]} 19. Be6 {[%clk 0:01:09]}  Ng6 {[%clk 0:00:40]} 20. f4 {[%clk 0:01:08]}  Nxe4 {[%clk 0:00:35]} 21. fxe5 {[%clk 0:00:44]}  Nxg3 {[%clk 0:00:24]} 22. Nxg3 {[%clk 0:00:45]}  Nf4 {[%clk 0:00:21]} 23. Bb3 {[%clk 0:00:38]}  Ke7 {[%clk 0:00:19]} 24. Nf5+ {[%clk 0:00:38]}  Kf8 {[%clk 0:00:17]} 25. Rd7 {[%clk 0:00:37]}  Re8 {[%clk 0:00:15]} 26. Rf7+ {[%clk 0:00:37]}  Kg8 {[%clk 0:00:14]} 27. Rxg7+ {[%clk 0:00:38]}  Kf8 {[%clk 0:00:14]} 28. Rf7+ {[%clk 0:00:39]}  Kg8 {[%clk 0:00:15]} 29. Nh6# {[%clk 0:00:40]} 1-0


[Site "https://www.chess.com"]

[Event "Titled Tuesday Blitz June 20 Early 2023"]
[White "Ginzburg, Yakov"]
[Black "Aradhya, Garg"]
[WhiteFideId "4157176"]
[BlackFideId "25006746"]
[WhiteElo "2305"]
[BlackElo "2263"]
[Result "0-1"]
[Round "5"]
[TimeControl "180+2"]
[Date "2023.06.20"]
[WhiteClock "0:00:03"]
[BlackClock "0:01:13"]
[Board "92"]

1. e4 {[%clk 0:02:58]}  e5 {[%clk 0:02:59]} 2. Nf3 {[%clk 0:02:58]}  Nc6 {[%clk 0:02:59]} 3. Bb5 {[%clk 0:02:58]}  a6 {[%clk 0:02:59]} 4. Bxc6 {[%clk 0:02:57]}  dxc6 {[%clk 0:02:58]} 5. O-O {[%clk 0:02:58]}  Bd6 {[%clk 0:02:58]} 6. d4 {[%clk 0:02:57]}  exd4 {[%clk 0:02:59]} 7. Qxd4 {[%clk 0:02:56]}  f6 {[%clk 0:02:59]} 8. Nbd2 {[%clk 0:02:51]}  Be6 {[%clk 0:02:58]} 9. Rd1 {[%clk 0:02:35]}  Ne7 {[%clk 0:02:54]} 10. h3 {[%clk 0:02:26]}  Ng6 {[%clk 0:02:50]} 11. Nc4 {[%clk 0:01:38]}  Bxc4 {[%clk 0:02:50]} 12. Qxc4 {[%clk 0:01:38]}  Bh2+ {[%clk 0:02:50]} 13. Kxh2 {[%clk 0:01:38]}  Qxd1 {[%clk 0:02:50]} 14. Qe6+ {[%clk 0:01:36]}  Ne7 {[%clk 0:02:44]} 15. Bh6 {[%clk 0:01:32]}  Qxa1 {[%clk 0:01:28]} 16. Bxg7 {[%clk 0:01:31]}  Qd1 {[%clk 0:01:28]} 17. Bxh8 {[%clk 0:01:19]}  Qd6+ {[%clk 0:01:27]} 18. Qxd6 {[%clk 0:01:19]}  cxd6 {[%clk 0:01:28]} 19. Bxf6 {[%clk 0:01:19]}  Kf7 {[%clk 0:01:28]} 20. Bc3 {[%clk 0:01:14]}  Ng6 {[%clk 0:01:28]} 21. Ng5+ {[%clk 0:01:13]}  Kg8 {[%clk 0:01:27]} 22. g3 {[%clk 0:01:11]}  Re8 {[%clk 0:01:27]} 23. h4 {[%clk 0:00:24]}  h6 {[%clk 0:01:24]} 24. h5 {[%clk 0:00:25]}  hxg5 {[%clk 0:01:23]} 25. hxg6 {[%clk 0:00:25]}  Rxe4 {[%clk 0:01:23]} 26. Kh3 {[%clk 0:00:21]}  d5 {[%clk 0:01:15]} 27. f3 {[%clk 0:00:19]}  Re6 {[%clk 0:01:15]} 28. g7 {[%clk 0:00:19]}  c5 {[%clk 0:01:15]} 29. Kg4 {[%clk 0:00:16]}  d4 {[%clk 0:01:15]} 30. Bd2 {[%clk 0:00:16]}  Kxg7 {[%clk 0:01:14]} 31. Bxg5 {[%clk 0:00:14]}  Re2 {[%clk 0:01:14]} 32. f4 {[%clk 0:00:11]}  Rxc2 {[%clk 0:01:14]} 33. f5 {[%clk 0:00:12]}  Rxb2 {[%clk 0:01:14]} 34. Kh5 {[%clk 0:00:09]}  d3 {[%clk 0:01:13]} 35. f6+ {[%clk 0:00:03]}  Kf7 {[%clk 0:01:13]} 0-1


[Site "https://www.chess.com"]

[Event "Titled Tuesday Blitz June 20 Early 2023"]
[White "Kokoszczynski, Jan"]
[Black "Gorovets, Andrey"]
[WhiteFideId "1174460"]
[BlackFideId "13504037"]
[WhiteElo "2139"]
[BlackElo "2459"]
[Result "1/2-1/2"]
[Round "5"]
[TimeControl "180+2"]
[Date "2023.06.20"]
[WhiteClock "0:00:04"]
[BlackClock "0:00:24"]
[Board "97"]

1. d4 {[%clk 0:03:00]}  Nf6 {[%clk 0:02:59]} 2. c4 {[%clk 0:03:00]}  e6 {[%clk 0:03:00]} 3. Nc3 {[%clk 0:03:00]}  Bb4 {[%clk 0:03:00]} 4. e3 {[%clk 0:03:00]}  b6 {[%clk 0:02:56]} 5. Nf3 {[%clk 0:02:57]}  Bb7 {[%clk 0:02:56]} 6. Bd2 {[%clk 0:02:57]}  O-O {[%clk 0:02:56]} 7. a3 {[%clk 0:02:57]}  Bxc3 {[%clk 0:02:56]} 8. Bxc3 {[%clk 0:02:57]}  Ne4 {[%clk 0:02:56]} 9. Rc1 {[%clk 0:02:58]}  d6 {[%clk 0:02:54]} 10. Be2 {[%clk 0:02:57]}  Nd7 {[%clk 0:02:51]} 11. O-O {[%clk 0:02:52]}  Qe7 {[%clk 0:02:43]} 12. d5 {[%clk 0:02:28]}  e5 {[%clk 0:02:32]} 13. Be1 {[%clk 0:02:20]}  f5 {[%clk 0:02:31]} 14. Nd2 {[%clk 0:02:19]}  Nxd2 {[%clk 0:02:27]} 15. Qxd2 {[%clk 0:02:11]}  f4 {[%clk 0:02:26]} 16. Bg4 {[%clk 0:02:03]}  Nc5 {[%clk 0:02:18]} 17. Qc2 {[%clk 0:01:58]}  Bc8 {[%clk 0:02:16]} 18. Bxc8 {[%clk 0:01:57]}  Raxc8 {[%clk 0:02:17]} 19. b4 {[%clk 0:01:56]}  Nd7 {[%clk 0:02:17]} 20. exf4 {[%clk 0:01:39]}  Rxf4 {[%clk 0:02:18]} 21. Bd2 {[%clk 0:01:35]}  Rf7 {[%clk 0:02:13]} 22. Be3 {[%clk 0:01:33]}  Rcf8 {[%clk 0:02:09]} 23. c5 {[%clk 0:01:22]}  Nf6 {[%clk 0:02:02]} 24. Qd3 {[%clk 0:01:04]}  Ng4 {[%clk 0:01:55]} 25. h3 {[%clk 0:01:05]}  Nxe3 {[%clk 0:01:54]} 26. Qxe3 {[%clk 0:01:01]}  Qh4 {[%clk 0:01:55]} 27. cxb6 {[%clk 0:00:55]}  cxb6 {[%clk 0:01:51]} 28. Rc6 {[%clk 0:00:52]}  Rf6 {[%clk 0:01:51]} 29. f3 {[%clk 0:00:36]}  Rg6 {[%clk 0:01:35]} 30. Rf2 {[%clk 0:00:22]}  h6 {[%clk 0:00:56]} 31. Qc3 {[%clk 0:00:10]}  Rf5 {[%clk 0:00:43]} 32. Rc8+ {[%clk 0:00:08]}  Kh7 {[%clk 0:00:43]} 33. Ra8 {[%clk 0:00:05]}  Rg3 {[%clk 0:00:26]} 34. Qc8 {[%clk 0:00:04]}  Rf4 {[%clk 0:00:23]} 35. Qg8+ {[%clk 0:00:03]}  Kg6 {[%clk 0:00:23]} 36. Qe6+ {[%clk 0:00:03]}  Kh7 {[%clk 0:00:23]} 37. Qg8+ {[%clk 0:00:03]}  Kg6 {[%clk 0:00:24]} 38. Qe6+ {[%clk 0:00:04]}  Kh7 {[%clk 0:00:24]} 39. Qg8+ {[%clk 0:00:04]} 1/2-1/2


[Site "https://www.chess.com"]